[Event "GrandPrix_30.05"]
[Site "Chess.com"]
[Date "2020.05.30"]
[Round "8"]
[White "RussianChessFighter"]
[Black "SamadovRead"]
[Result "1-0"]
[WhiteElo "2163"]
[BlackElo "1977"]
[TimeControl "600+2"]
[EndTime "12:00:31 PDT"]
[Termination "RussianChessFighter won by resignation"]

1. b3 {[%clk 0:09:45.7]} 1... c5 {[%clk 0:09:59.6]} 2. Bb2 {[%clk 0:09:46.2]}
2... d6 {[%clk 0:09:58.3]} 3. e3 {[%clk 0:09:48.1]} 3... e5 {[%clk 0:09:54]} 4.
d4 {[%clk 0:09:47.5]} 4... cxd4 {[%clk 0:09:39.9]} 5. exd4 {[%clk 0:09:49.4]}
5... e4 {[%clk 0:09:21]} 6. d5 {[%clk 0:09:50.3]} 6... Nf6 {[%clk 0:09:18.3]} 7.
c4 {[%clk 0:09:48.7]} 7... Be7 {[%clk 0:09:17.3]} 8. Nc3 {[%clk 0:09:48.7]} 8...
O-O {[%clk 0:09:18.3]} 9. Nge2 {[%clk 0:09:39.5]} 9... Bf5 {[%clk 0:08:59.1]}
10. Nd4 {[%clk 0:09:23]} 10... Bg6 {[%clk 0:08:57.3]} 11. Be2 {[%clk 0:09:23.7]}
11... Nbd7 {[%clk 0:08:56.8]} 12. Qd2 {[%clk 0:09:24.5]} 12... Ne5 {[%clk
0:08:53.4]} 13. O-O {[%clk 0:09:24.2]} 13... Nfd7 {[%clk 0:08:44.8]} 14. Rad1
{[%clk 0:09:17.9]} 14... Nc5 {[%clk 0:08:44.3]} 15. Ba1 {[%clk 0:09:03.9]} 15...
Bg5 {[%clk 0:08:29.3]} 16. Qb2 {[%clk 0:08:41.6]} 16... Ncd3 {[%clk 0:07:48.5]}
17. Bxd3 {[%clk 0:08:41]} 17... Nxd3 {[%clk 0:07:46.8]} 18. Qe2 {[%clk
0:08:35.8]} 18... Nf4 {[%clk 0:07:29.9]} 19. Qb2 {[%clk 0:07:49.8]} 19... Bf6
{[%clk 0:07:21.8]} 20. Qd2 {[%clk 0:07:38.6]} 20... Be5 {[%clk 0:07:13.4]} 21.
Rfe1 {[%clk 0:06:51.6]} 21... Qg5 {[%clk 0:05:10.8]} 22. g3 {[%clk 0:06:32.3]}
22... Qg4 {[%clk 0:05:04.5]} 23. Qe3 {[%clk 0:04:31]} 23... Nd3 {[%clk
0:04:31.1]} 24. Rf1 {[%clk 0:04:10.7]} 24... Nf4 {[%clk 0:03:33.2]} 25. Kh1
{[%clk 0:03:37.4]} 25... Nh5 {[%clk 0:03:08.9]} 26. Rfe1 {[%clk 0:03:05.1]}
26... f5 {[%clk 0:02:33.2]} 27. Qe2 {[%clk 0:02:54.9]} 27... Qh3 {[%clk
0:02:27.3]} 28. Qf1 {[%clk 0:02:51]} 28... Qxf1+ {[%clk 0:02:13]} 29. Rxf1
{[%clk 0:02:52.2]} 29... f4 {[%clk 0:02:14.4]} 30. Ne6 {[%clk 0:02:48.1]} 30...
Rf6 {[%clk 0:01:57.9]} 31. g4 {[%clk 0:02:33.4]} 31... e3 {[%clk 0:01:43]} 32.
gxh5 {[%clk 0:02:05.4]} 32... Bxh5 {[%clk 0:01:42.7]} 33. fxe3 {[%clk
0:01:31.7]} 33... Bxd1 {[%clk 0:01:34.3]} 34. Rxd1 {[%clk 0:01:16.1]} 34... fxe3
{[%clk 0:01:32.8]} 35. Re1 {[%clk 0:01:04.5]} 35... Rf2 {[%clk 0:01:31]} 36. Ne4
{[%clk 0:00:52.6]} 36... Rxh2+ {[%clk 0:01:04.3]} 37. Kg1 {[%clk 0:00:53.8]}
37... Rxa2 {[%clk 0:00:53.1]} 38. Bxe5 {[%clk 0:00:54]} 38... dxe5 {[%clk
0:00:55]} 39. Rxe3 {[%clk 0:00:55.2]} 39... Kf7 {[%clk 0:00:51.1]} 40. Nd6+
{[%clk 0:00:52.2]} 40... Ke7 {[%clk 0:00:51.7]} 41. Nf5+ {[%clk 0:00:49]} 41...
Kf6 {[%clk 0:00:52.1]} 42. Nfxg7 {[%clk 0:00:50.2]} 42... Rg8 {[%clk 0:00:49.6]}
43. Rf3+ {[%clk 0:00:47.1]} 43... Ke7 {[%clk 0:00:50.7]} 44. Kf1 {[%clk
0:00:48.6]} 44... h5 {[%clk 0:00:36.5]} 45. Rf2 {[%clk 0:00:41.3]} 45... Ra1+
{[%clk 0:00:34.9]} 46. Kg2 {[%clk 0:00:36.4]} 46... h4 {[%clk 0:00:34.4]} 47.
Kh2 {[%clk 0:00:33.9]} 47... Kd6 {[%clk 0:00:31.3]} 48. Nf5+ {[%clk 0:00:28.1]}
48... Kd7 {[%clk 0:00:31.2]} 49. Nc5+ {[%clk 0:00:21]} 49... Kc7 {[%clk
0:00:29.3]} 50. d6+ {[%clk 0:00:21.1]} 50... Kb6 {[%clk 0:00:30]} 51. Nd7+
{[%clk 0:00:21.6]} 51... Ka6 {[%clk 0:00:27.9]} 52. Nxe5 {[%clk 0:00:21]} 52...
h3 {[%clk 0:00:26.8]} 53. Nf7 {[%clk 0:00:21.7]} 53... Rag1 {[%clk 0:00:23.6]}
54. d7 {[%clk 0:00:22.2]} 54... R1g2+ {[%clk 0:00:21.2]} 55. Rxg2 {[%clk
0:00:23.2]} 55... hxg2 {[%clk 0:00:22.2]} 56. Kg1 {[%clk 0:00:24.3]} 56... Rf8
{[%clk 0:00:22.4]} 57. d8=Q {[%clk 0:00:25.3]} 1-0

[Event "GrandPrix_30.05"]
[Site "Chess.com"]
[Date "2020.05.30"]
[Round "8"]
[White "AvitalBor"]
[Black "VojtechPlat"]
[Result "1-0"]
[WhiteElo "2611"]
[BlackElo "2336"]
[TimeControl "600+2"]
[EndTime "12:00:35 PDT"]
[Termination "AvitalBor won by resignation"]

1. e4 {[%clk 0:10:01.9]} 1... e5 {[%clk 0:09:59.2]} 2. Nf3 {[%clk 0:10:02.5]}
2... Nc6 {[%clk 0:10:00.8]} 3. Bb5 {[%clk 0:10:03.4]} 3... a6 {[%clk 0:10:01.6]}
4. Ba4 {[%clk 0:10:04.5]} 4... g6 {[%clk 0:10:02.6]} 5. O-O {[%clk 0:10:03.6]}
5... Bg7 {[%clk 0:10:03.1]} 6. c3 {[%clk 0:10:03.6]} 6... Nge7 {[%clk
0:10:03.6]} 7. d4 {[%clk 0:10:04.5]} 7... exd4 {[%clk 0:10:04.6]} 8. Nxd4 {[%clk
0:10:05.7]} 8... O-O {[%clk 0:10:04.1]} 9. Bg5 {[%clk 0:10:01.5]} 9... h6 {[%clk
0:09:58.8]} 10. Nxc6 {[%clk 0:10:00.5]} 10... bxc6 {[%clk 0:09:59.1]} 11. Be3
{[%clk 0:09:59.4]} 11... Rb8 {[%clk 0:09:50.4]} 12. Bb3 {[%clk 0:09:43]} 12...
d5 {[%clk 0:09:50.2]} 13. Nd2 {[%clk 0:09:41.4]} 13... Be6 {[%clk 0:09:45.8]}
14. Re1 {[%clk 0:09:33.7]} 14... Re8 {[%clk 0:09:38.4]} 15. Bd4 {[%clk
0:08:59.2]} 15... Bxd4 {[%clk 0:09:35]} 16. cxd4 {[%clk 0:09:01.1]} 16... Kg7
{[%clk 0:09:12]} 17. Qc2 {[%clk 0:08:45.1]} 17... Qd6 {[%clk 0:08:49.7]} 18.
Rac1 {[%clk 0:08:41.1]} 18... Qf4 {[%clk 0:08:46]} 19. Qc3 {[%clk 0:08:32.4]}
19... h5 {[%clk 0:07:58.6]} 20. Re3 {[%clk 0:08:28.5]} 20... Kg8 {[%clk
0:07:53.1]} 21. Rce1 {[%clk 0:08:10.7]} 21... Red8 {[%clk 0:07:25.4]} 22. Nf3
{[%clk 0:07:43.2]} 22... Qf6 {[%clk 0:07:09.8]} 23. Qc5 {[%clk 0:06:54]} 23...
dxe4 {[%clk 0:05:13.1]} 24. Bxe6 {[%clk 0:06:53.5]} 24... fxe6 {[%clk
0:05:13.2]} 25. Rxe4 {[%clk 0:06:49.8]} 25... Rd6 {[%clk 0:05:14]} 26. Qa7
{[%clk 0:06:26.6]} 26... Rxb2 {[%clk 0:05:13.9]} 27. Qxc7 {[%clk 0:06:22]} 27...
Nf5 {[%clk 0:05:14.5]} 28. h3 {[%clk 0:04:42.7]} 28... Rxa2 {[%clk 0:05:13.3]}
29. Rxe6 {[%clk 0:04:16.1]} 29... Rxe6 {[%clk 0:05:04.6]} 30. Qc8+ {[%clk
0:04:17]} 30... Kg7 {[%clk 0:04:26.1]} 31. Rxe6 {[%clk 0:04:10.4]} 31... Qf7
{[%clk 0:03:46.5]} 32. Ne5 {[%clk 0:01:01.8]} 32... Ng3 {[%clk 0:02:23.1]} 33.
Rxg6+ {[%clk 0:00:48.5]} 33... Qxg6 {[%clk 0:02:22.7]} 34. Qc7+ {[%clk
0:00:25.7]} 34... Kg8 {[%clk 0:02:19.3]} 35. Qd8+ {[%clk 0:00:17.9]} 35... Kg7
{[%clk 0:02:18.9]} 36. Qe7+ {[%clk 0:00:17]} 36... Kg8 {[%clk 0:02:19.6]} 37.
fxg3 {[%clk 0:00:08.9]} 37... Qf5 {[%clk 0:02:01.8]} 38. Qe8+ {[%clk 0:00:07.5]}
38... Kg7 {[%clk 0:02:02.5]} 39. Qe7+ {[%clk 0:00:08.3]} 39... Kg8 {[%clk
0:02:03.4]} 40. Kh2 {[%clk 0:00:08.9]} 40... Rf2 {[%clk 0:01:38.9]} 41. Qe8+
{[%clk 0:00:08.9]} 41... Kg7 {[%clk 0:01:39.4]} 42. Qxc6 {[%clk 0:00:09.7]}
42... Qf6 {[%clk 0:01:28.5]} 43. Qb7+ {[%clk 0:00:09.9]} 43... Kg8 {[%clk
0:01:28.8]} 44. Qd5+ {[%clk 0:00:10.7]} 44... Kg7 {[%clk 0:01:29.6]} 45. Qb7+
{[%clk 0:00:11]} 45... Kg8 {[%clk 0:01:30.1]} 46. Qe4 {[%clk 0:00:11.8]} 46...
Rf5 {[%clk 0:00:49.4]} 47. h4 {[%clk 0:00:12.5]} 47... Qe6 {[%clk 0:00:46.5]}
48. Qa8+ {[%clk 0:00:13.2]} 48... Rf8 {[%clk 0:00:46.9]} 49. Qb7 {[%clk
0:00:14.2]} 49... a5 {[%clk 0:00:41.8]} 50. Qa7 {[%clk 0:00:14.8]} 50... Qd6
{[%clk 0:00:21.4]} 51. Qxa5 {[%clk 0:00:14.9]} 51... Qxd4 {[%clk 0:00:22.4]} 52.
Ng6 {[%clk 0:00:13.4]} 52... Rf7 {[%clk 0:00:22.1]} 53. Qxh5 {[%clk 0:00:13.2]}
53... Qf6 {[%clk 0:00:22.3]} 54. Nf4 {[%clk 0:00:13.9]} 54... Rg7 {[%clk
0:00:22.2]} 55. Qe8+ {[%clk 0:00:14.2]} 55... Kh7 {[%clk 0:00:23.2]} 56. Nh5
{[%clk 0:00:14.1]} 1-0

[Event "GrandPrix_30.05"]
[Site "Chess.com"]
[Date "2020.05.30"]
[Round "8"]
[White "v-kazakouski"]
[Black "NikolaGry"]
[Result "1/2-1/2"]
[WhiteElo "2378"]
[BlackElo "2215"]
[TimeControl "600+2"]
[EndTime "12:00:40 PDT"]
[Termination "Game drawn by agreement"]

1. d4 {[%clk 0:09:51]} 1... d5 {[%clk 0:09:58.3]} 2. c4 {[%clk 0:09:51.2]} 2...
Nc6 {[%clk 0:09:58.5]} 3. Nc3 {[%clk 0:09:48.6]} 3... dxc4 {[%clk 0:09:57.7]} 4.
Nf3 {[%clk 0:09:48.1]} 4... Nf6 {[%clk 0:09:54.2]} 5. Bg5 {[%clk 0:09:48.1]}
5... h6 {[%clk 0:09:47.6]} 6. Bh4 {[%clk 0:09:48.4]} 6... g5 {[%clk 0:08:36.6]}
7. Bg3 {[%clk 0:09:33.8]} 7... g4 {[%clk 0:05:57]} 8. d5 {[%clk 0:06:03.1]} 8...
gxf3 {[%clk 0:04:59.1]} 9. dxc6 {[%clk 0:05:58.7]} 9... Qxd1+ {[%clk 0:04:02.6]}
10. Rxd1 {[%clk 0:05:55.9]} 10... fxe2 {[%clk 0:03:28.6]} 11. Bxe2 {[%clk
0:05:48.1]} 11... bxc6 {[%clk 0:03:24]} 12. Bxc7 {[%clk 0:05:32.5]} 12... Be6
{[%clk 0:03:14.4]} 13. Bf3 {[%clk 0:05:06.3]} 13... Nd5 {[%clk 0:03:05.4]} 14.
Nxd5 {[%clk 0:04:16.1]} 14... Bxd5 {[%clk 0:02:42.2]} 15. Rxd5 {[%clk
0:03:21.8]} 15... cxd5 {[%clk 0:02:33]} 16. Bxd5 {[%clk 0:03:22.2]} 16... Kd7
{[%clk 0:02:28.6]} 17. Be5 {[%clk 0:02:53.7]} 17... f6 {[%clk 0:02:14.8]} 18.
Bxa8 {[%clk 0:02:53.7]} 18... fxe5 {[%clk 0:02:14.9]} 19. Bd5 {[%clk 0:02:53.4]}
19... e6 {[%clk 0:01:41.6]} 20. Bxc4 {[%clk 0:02:52.2]} 20... Bc5 {[%clk
0:01:41.7]} 21. Ke2 {[%clk 0:02:43.1]} 21... Rg8 {[%clk 0:01:34.6]} 22. g3
{[%clk 0:02:40.7]} 22... Bd4 {[%clk 0:01:29.5]} 23. b3 {[%clk 0:02:38.1]} 23...
Rf8 {[%clk 0:01:20.7]} 24. f3 {[%clk 0:02:04.3]} 24... e4 {[%clk 0:01:16.5]} 25.
f4 {[%clk 0:01:24.2]} 25... e5 {[%clk 0:01:08.6]} 26. Rd1 {[%clk 0:01:24.3]}
26... Kd6 {[%clk 0:01:03]} 27. fxe5+ {[%clk 0:00:42.4]} 27... Kxe5 {[%clk
0:01:01.9]} 28. Rf1 {[%clk 0:00:44.3]} 28... Rxf1 {[%clk 0:00:59.8]} 29. Kxf1
{[%clk 0:00:46.2]} 29... Bc5 {[%clk 0:00:52.6]} 30. Bg8 {[%clk 0:00:45.1]} 30...
Kd4 {[%clk 0:00:52]} 31. Ke2 {[%clk 0:00:43.6]} 31... Bd6 {[%clk 0:00:51.3]} 32.
Bh7 {[%clk 0:00:41.7]} 32... a5 {[%clk 0:00:41.3]} 33. Bg6 {[%clk 0:00:40.8]}
33... Be7 {[%clk 0:00:36.3]} 34. h3 {[%clk 0:00:36.5]} 34... Bd6 {[%clk
0:00:34.2]} 35. g4 {[%clk 0:00:37.9]} 35... Be7 {[%clk 0:00:33.9]} 36. Bh7
{[%clk 0:00:38]} 36... Bd6 {[%clk 0:00:34.6]} 37. Bg8 {[%clk 0:00:24]} 37... Be7
{[%clk 0:00:34.4]} 38. Bc4 {[%clk 0:00:20.2]} 38... Bd6 {[%clk 0:00:33.8]} 39.
Kd2 {[%clk 0:00:21]} 39... Be7 {[%clk 0:00:30.7]} 40. Ke2 {[%clk 0:00:18.3]}
40... Bd6 {[%clk 0:00:31.2]} 41. h4 {[%clk 0:00:19.4]} 41... Be7 {[%clk
0:00:31.9]} 42. h5 {[%clk 0:00:19.1]} 42... Bd6 {[%clk 0:00:28.8]} 43. Be6
{[%clk 0:00:18.4]} 43... Be7 {[%clk 0:00:25.8]} 44. Bc8 {[%clk 0:00:18.3]} 44...
Bd6 {[%clk 0:00:26.6]} 45. Bf5 {[%clk 0:00:15.2]} 45... Be7 {[%clk 0:00:26]} 46.
Bc8 {[%clk 0:00:08.5]} 46... Bd6 {[%clk 0:00:21.8]} 47. g5 {[%clk 0:00:06]}
47... hxg5 {[%clk 0:00:21.9]} 48. h6 {[%clk 0:00:07.9]} 48... Be5 {[%clk
0:00:19.2]} 49. h7 {[%clk 0:00:08.8]} 49... Bf6 {[%clk 0:00:16.1]} 50. a3 {[%clk
0:00:08.3]} 50... Be5 {[%clk 0:00:14.7]} 51. Be6 {[%clk 0:00:08.4]} 51... Bf6
{[%clk 0:00:14.2]} 52. b4 {[%clk 0:00:07.2]} 52... axb4 {[%clk 0:00:14]} 53.
axb4 {[%clk 0:00:09.1]} 53... g4 {[%clk 0:00:13.7]} 54. b5 {[%clk 0:00:09]}
54... Kc5 {[%clk 0:00:14.1]} 55. Bxg4 {[%clk 0:00:08.4]} 55... Kxb5 {[%clk
0:00:14.4]} 56. Ke3 {[%clk 0:00:08.4]} 56... Kc5 {[%clk 0:00:13.7]} 57. Kxe4
{[%clk 0:00:09.2]} 1/2-1/2

[Event "GrandPrix_30.05"]
[Site "Chess.com"]
[Date "2020.05.30"]
[Round "8"]
[White "Magicmaster17"]
[Black "BlackBoarder"]
[Result "1/2-1/2"]
[WhiteElo "2396"]
[BlackElo "2237"]
[TimeControl "600+2"]
[EndTime "12:00:44 PDT"]
[Termination "Game drawn by agreement"]

1. Nf3 {[%clk 0:10:01.9]} 1... Nf6 {[%clk 0:09:54.4]} 2. c4 {[%clk 0:10:02.4]}
2... e6 {[%clk 0:09:48.9]} 3. Nc3 {[%clk 0:10:02.9]} 3... d5 {[%clk 0:09:46.5]}
4. d4 {[%clk 0:10:01.7]} 4... Bb4 {[%clk 0:09:45.4]} 5. Qa4+ {[%clk 0:09:21.8]}
5... Nc6 {[%clk 0:09:34.2]} 6. e3 {[%clk 0:09:23.2]} 6... O-O {[%clk 0:09:30.5]}
7. Qc2 {[%clk 0:09:24.4]} 7... Bd6 {[%clk 0:09:15]} 8. c5 {[%clk 0:08:52.2]}
8... Be7 {[%clk 0:09:14.2]} 9. a3 {[%clk 0:08:53.6]} 9... a5 {[%clk 0:08:55.3]}
10. Bb5 {[%clk 0:08:51.8]} 10... Bd7 {[%clk 0:08:54.2]} 11. O-O {[%clk
0:08:50.5]} 11... b6 {[%clk 0:08:51.7]} 12. cxb6 {[%clk 0:06:28.1]} 12... cxb6
{[%clk 0:08:49.2]} 13. Bd2 {[%clk 0:06:29.8]} 13... Qc7 {[%clk 0:08:35.4]} 14.
Rfc1 {[%clk 0:06:24]} 14... Rfc8 {[%clk 0:08:34]} 15. e4 {[%clk 0:05:36.5]}
15... dxe4 {[%clk 0:08:27.6]} 16. Nxe4 {[%clk 0:05:37.1]} 16... Qb7 {[%clk
0:08:16.9]} 17. Nxf6+ {[%clk 0:05:23.2]} 17... Bxf6 {[%clk 0:08:12.4]} 18. Qe4
{[%clk 0:05:24.9]} 18... Rc7 {[%clk 0:07:20.3]} 19. Bd3 {[%clk 0:05:23.1]} 19...
g6 {[%clk 0:07:19.8]} 20. Bf4 {[%clk 0:05:23.9]} 20... Rcc8 {[%clk 0:07:16.7]}
21. Bb5 {[%clk 0:05:17.9]} 21... Ra7 {[%clk 0:06:18.7]} 22. Be3 {[%clk
0:04:00.7]} 22... Ne7 {[%clk 0:05:39.3]} 23. Rxc8+ {[%clk 0:02:35.4]} 23... Nxc8
{[%clk 0:05:39.2]} 24. Qf4 {[%clk 0:02:19]} 24... Bg7 {[%clk 0:05:26.5]} 25. Bd3
{[%clk 0:02:17.4]} 25... Ne7 {[%clk 0:05:02.6]} 26. Be4 {[%clk 0:02:04.7]} 26...
Qc7 {[%clk 0:04:42.7]} 27. Ne5 {[%clk 0:01:44.8]} 27... Be8 {[%clk 0:02:47.4]}
28. Rc1 {[%clk 0:01:44.9]} 28... Qd8 {[%clk 0:02:44.5]} 29. h4 {[%clk
0:01:45.7]} 29... f6 {[%clk 0:02:14.7]} 30. Nf3 {[%clk 0:01:21.2]} 30... Rd7
{[%clk 0:01:59]} 31. Qg3 {[%clk 0:00:43.5]} 31... Nd5 {[%clk 0:01:47.7]} 32.
Bxd5 {[%clk 0:00:32.2]} 32... Rxd5 {[%clk 0:01:47.5]} 33. Rc7 {[%clk 0:00:23.6]}
33... Rd7 {[%clk 0:01:14.7]} 34. Rxd7 {[%clk 0:00:23.9]} 34... Qxd7 {[%clk
0:01:13.9]} 35. Qb8 {[%clk 0:00:23.1]} 35... Qc6 {[%clk 0:01:12]} 36. d5 {[%clk
0:00:23.5]} 36... exd5 {[%clk 0:01:08.3]} 37. Bxb6 {[%clk 0:00:12.6]} 37... a4
{[%clk 0:01:06.9]} 38. Nd4 {[%clk 0:00:13.3]} 38... Qd7 {[%clk 0:01:06.2]} 39.
Bc5 {[%clk 0:00:14.2]} 39... f5 {[%clk 0:00:57.3]} 40. b4 {[%clk 0:00:10.5]}
40... axb3 {[%clk 0:00:53.5]} 41. Qxb3 {[%clk 0:00:12.1]} 41... Qa4 {[%clk
0:00:42.8]} 42. Qxd5+ {[%clk 0:00:07.6]} 42... Bf7 {[%clk 0:00:30.5]} 43. Qd8+
{[%clk 0:00:08]} 43... Qe8 {[%clk 0:00:31.4]} 44. Qxe8+ {[%clk 0:00:05.8]} 44...
Bxe8 {[%clk 0:00:32.6]} 45. Ne6 {[%clk 0:00:07.1]} 45... Bf6 {[%clk 0:00:29.3]}
46. Nc7 {[%clk 0:00:04.7]} 46... Bc6 {[%clk 0:00:29.3]} 47. g3 {[%clk
0:00:05.7]} 47... Kf7 {[%clk 0:00:29.2]} 48. Na6 {[%clk 0:00:06.3]} 48... Ke6
{[%clk 0:00:29.6]} 49. Nb4 {[%clk 0:00:06.4]} 49... Bb5 {[%clk 0:00:28.7]} 50.
Nc2 {[%clk 0:00:07.4]} 50... Bb2 {[%clk 0:00:26.3]} 51. Bd4 {[%clk 0:00:07.2]}
51... Bc1 {[%clk 0:00:26.1]} 52. Be3 {[%clk 0:00:07.6]} 52... Bb2 {[%clk
0:00:27.4]} 53. Bd4 {[%clk 0:00:08.7]} 53... Bc1 {[%clk 0:00:28.6]} 54. f3
{[%clk 0:00:08.8]} 54... Ba4 {[%clk 0:00:27]} 55. Nb4 {[%clk 0:00:06.7]} 55...
Bxa3 {[%clk 0:00:26.8]} 56. Nd3 {[%clk 0:00:07.5]} 56... Bd6 {[%clk 0:00:27.6]}
57. Kf2 {[%clk 0:00:08]} 57... Bb5 {[%clk 0:00:28]} 58. Nf4+ {[%clk 0:00:08]}
58... Bxf4 {[%clk 0:00:27.2]} 59. gxf4 {[%clk 0:00:09.9]} 1/2-1/2

[Event "GrandPrix_30.05"]
[Site "Chess.com"]
[Date "2020.05.30"]
[Round "8"]
[White "Spartakus1975"]
[Black "tacticthunder"]
[Result "1/2-1/2"]
[WhiteElo "2401"]
[BlackElo "2220"]
[TimeControl "600+2"]
[EndTime "12:00:44 PDT"]
[Termination "Game drawn - insufficient material"]

1. e4 {[%clk 0:09:58]} 1... c5 {[%clk 0:09:57.8]} 2. c3 {[%clk 0:09:58.9]} 2...
Nf6 {[%clk 0:09:54.3]} 3. e5 {[%clk 0:09:59.3]} 3... Nd5 {[%clk 0:09:54.7]} 4.
Nf3 {[%clk 0:10:00.8]} 4... Nc6 {[%clk 0:09:54.8]} 5. Bc4 {[%clk 0:10:01.8]}
5... Nb6 {[%clk 0:09:55.7]} 6. Bb3 {[%clk 0:10:02.7]} 6... d5 {[%clk 0:09:57]}
7. exd6 {[%clk 0:10:02.1]} 7... Qxd6 {[%clk 0:09:57]} 8. O-O {[%clk 0:10:02.6]}
8... Bg4 {[%clk 0:09:57.6]} 9. Bxf7+ {[%clk 0:10:01.4]} 9... Kxf7 {[%clk
0:09:27.1]} 10. Ng5+ {[%clk 0:10:01.2]} 10... Kg8 {[%clk 0:09:28.4]} 11. Qxg4
{[%clk 0:10:02.3]} 11... Ne5 {[%clk 0:09:30.3]} 12. Qe2 {[%clk 0:09:52.4]} 12...
h6 {[%clk 0:09:29.6]} 13. Ne4 {[%clk 0:09:50.2]} 13... Qd5 {[%clk 0:09:29.7]}
14. d4 {[%clk 0:09:46.7]} 14... cxd4 {[%clk 0:09:30.3]} 15. cxd4 {[%clk
0:09:48.1]} 15... Nc6 {[%clk 0:09:29.6]} 16. Nbc3 {[%clk 0:09:45.8]} 16... Nxd4
{[%clk 0:09:26.4]} 17. Qd1 {[%clk 0:09:18.5]} 17... Qd7 {[%clk 0:09:16]} 18. Be3
{[%clk 0:09:18.7]} 18... e5 {[%clk 0:09:16.6]} 19. Qh5 {[%clk 0:09:14.2]} 19...
Qf5 {[%clk 0:09:13]} 20. Qxf5 {[%clk 0:09:12.6]} 20... Nxf5 {[%clk 0:09:14.9]}
21. Bxb6 {[%clk 0:09:05.5]} 21... axb6 {[%clk 0:09:16.8]} 22. Rfe1 {[%clk
0:08:46.4]} 22... Kf7 {[%clk 0:09:09.9]} 23. Ng3 {[%clk 0:08:44.3]} 23... Nxg3
{[%clk 0:09:08.6]} 24. hxg3 {[%clk 0:08:45.2]} 24... Bd6 {[%clk 0:08:39.9]} 25.
Rad1 {[%clk 0:08:26]} 25... Rhd8 {[%clk 0:08:36.4]} 26. Nb5 {[%clk 0:08:15.1]}
26... Bc5 {[%clk 0:08:22.3]} 27. a3 {[%clk 0:08:12.3]} 27... Kf6 {[%clk
0:08:07]} 28. Kf1 {[%clk 0:07:53.8]} 28... Rac8 {[%clk 0:08:04.7]} 29. Ke2
{[%clk 0:07:24.2]} 29... h5 {[%clk 0:08:02.4]} 30. f3 {[%clk 0:07:19.7]} 30...
g6 {[%clk 0:07:57]} 31. Rc1 {[%clk 0:06:56.2]} 31... Rc6 {[%clk 0:07:26.7]} 32.
Red1 {[%clk 0:06:47.8]} 32... Bd4 {[%clk 0:06:12.5]} 33. Nxd4 {[%clk 0:06:39.3]}
33... Rxd4 {[%clk 0:05:47.2]} 34. Rxd4 {[%clk 0:06:38.5]} 34... exd4 {[%clk
0:05:08.4]} 35. Rd1 {[%clk 0:06:37.9]} 35... Rc2+ {[%clk 0:02:11.6]} 36. Rd2
{[%clk 0:06:36.8]} 36... Rxd2+ {[%clk 0:02:11.9]} 37. Kxd2 {[%clk 0:06:37.7]}
37... Ke5 {[%clk 0:02:05]} 38. Kd3 {[%clk 0:06:37.8]} 38... b5 {[%clk
0:01:17.5]} 39. b3 {[%clk 0:05:54.6]} 39... Kd5 {[%clk 0:00:21.9]} 40. f4 {[%clk
0:05:43.1]} 40... Kc5 {[%clk 0:00:03.7]} 41. Ke4 {[%clk 0:05:29.1]} 41... b6
{[%clk 0:00:04.6]} 42. Kd3 {[%clk 0:04:10.9]} 42... Kd5 {[%clk 0:00:04.1]} 43.
b4 {[%clk 0:04:07.3]} 43... Ke6 {[%clk 0:00:03.2]} 44. Kxd4 {[%clk 0:04:02.9]}
44... Kd6 {[%clk 0:00:04.7]} 45. Ke4 {[%clk 0:03:55.9]} 45... Ke6 {[%clk
0:00:05.5]} 46. Kf3 {[%clk 0:02:28.2]} 46... Kf5 {[%clk 0:00:05.3]} 47. Ke3
{[%clk 0:02:28.2]} 47... Kf6 {[%clk 0:00:04.5]} 48. Kd4 {[%clk 0:02:24.6]} 48...
Kf5 {[%clk 0:00:04.8]} 49. Kd5 {[%clk 0:02:22.3]} 49... Kg4 {[%clk 0:00:05.4]}
50. Kc6 {[%clk 0:02:23.8]} 50... Kxg3 {[%clk 0:00:05.8]} 51. Kxb5 {[%clk
0:02:23.7]} 51... Kxg2 {[%clk 0:00:05.3]} 52. a4 {[%clk 0:02:25.1]} 52... h4
{[%clk 0:00:06.2]} 53. a5 {[%clk 0:02:26.5]} 53... bxa5 {[%clk 0:00:07]} 54.
bxa5 {[%clk 0:02:22.1]} 54... h3 {[%clk 0:00:07.4]} 55. a6 {[%clk 0:02:23.6]}
55... h2 {[%clk 0:00:08.8]} 56. a7 {[%clk 0:02:25]} 56... h1=Q {[%clk
0:00:08.4]} 57. a8=Q+ {[%clk 0:02:25.9]} 57... Kg1 {[%clk 0:00:05.5]} 58. Qa1+
{[%clk 0:02:02.9]} 58... Kh2 {[%clk 0:00:06.6]} 59. Qe5 {[%clk 0:01:41.4]} 59...
Kg2 {[%clk 0:00:02.9]} 60. Kc5 {[%clk 0:01:24.7]} 60... Qc1+ {[%clk 0:00:02.2]}
61. Kd5 {[%clk 0:01:23.6]} 61... Qd2+ {[%clk 0:00:02.3]} 62. Ke6 {[%clk
0:01:23.1]} 62... Kf3 {[%clk 0:00:03.8]} 63. f5 {[%clk 0:01:10.7]} 63... gxf5
{[%clk 0:00:05.7]} 64. Kxf5 {[%clk 0:01:11]} 64... Qd3+ {[%clk 0:00:05.7]} 65.
Kf6 {[%clk 0:01:12]} 65... Qe4 {[%clk 0:00:05.4]} 66. Qxe4+ {[%clk 0:01:11.5]}
66... Kxe4 {[%clk 0:00:04.8]} 1/2-1/2